bitfinex-derivatives/quotes_ETHF0:USTF0_20250114
["timestamp","ask_amount","ask_price","bid_price","bid_amount"]
[1736884110947,0.80598,3230.5,3230.4,41.10969]
[1736884111341,0.80598,3230.5,3230.4,40.8]
[1736884111539,7.33672844,3230.5,3230.4,40.8]
[1736884112349,7.33672844,3230.5,3230.4,41.10969]
[1736884113245,7.33672844,3230.5,3230.4,40.8]
[1736884114744,7.33672844,3230.5,3230.4,41.10969]
[1736884115335,7.33672844,3230.5,3230.4,40.8]
[1736884115546,4.12892844,3230.5,3230.4,41.10969]
[1736884116048,3.81924844,3230.5,3230.4,41.10969]
[1736884116247,4.12892844,3230.5,3230.4,41.10969]
[1736884116646,3.81924844,3230.5,3230.4,41.10969]
[1736884117548,0.9298,3230.6,3230.5,0.30968]
[1736884117549,0.4547,3230.6,3230.5,0.30968]
[1736884118142,0.4658,3231.0,3230.9,0.30965]
[1736884118343,0.4658,3231.0,3230.8,0.30965]
[1736884118537,3.32810602,3230.9,3230.5,3.2078]
[1736884118842,3.32810602,3230.9,3230.4,40.8]
[1736884119043,0.30966,3230.8,3230.4,43.23028895]
[1736884119242,3.63775602,3230.9,3230.4,43.23028895]
[1736884119443,3.50984866,3230.7,3230.4,44.00450895]
[1736884119642,3.50984866,3230.7,3230.6,0.30967]
[1736884119845,3.81950866,3230.8,3230.7,0.30966]
[1736884120036,0.4658,3231.0,3230.4,43.23028895]
[1736884120549,0.30965,3230.8,3230.7,0.30966]
[1736884120744,0.30967,3230.7,3230.6,0.30967]
[1736884120950,0.77637,3230.7,3230.6,0.30967]
[1736884121151,4.17663098,3230.7,3230.6,0.30967]
[1736884122651,3.86696098,3230.7,3230.4,40.8]
[1736884122950,0.30973,3230.0,3229.9,3.51753]
[1736884123250,0.30973,3230.0,3229.9,3.51754]
[1736884123452,0.30973,3230.0,3229.9,44.31754]
[1736884123954,3.2302339,3230.0,3229.9,44.31754]
[1736884124351,0.4764,3230.0,3229.9,44.0078]
[1736884124646,4.79839117,3230.0,3229.9,40.8]
[1736884124851,1.24903,3230.0,3229.9,40.8]
[1736884125156,4.70037575,3230.0,3229.9,40.8]
[1736884127552,4.70037575,3230.0,3229.9,41.10974]
[1736884127753,4.70037575,3230.0,3229.9,40.8]
[1736884128052,4.39064575,3230.0,3229.9,41.10974]
[1736884128354,3.45134575,3230.0,3229.9,41.10974]
[1736884128757,7.1316347,3230.0,3228.8,3.2078]
[1736884128949,5.63808895,3229.7,3229.3,0.3098]
[1736884129146,3.2078,3229.7,3229.6,0.30977]
[1736884129355,3.2078,3229.7,3229.6,41.10977]
[1736884129552,6.4749729,3229.7,3229.6,41.10977]
[1736884131157,3.5769329,3229.7,3229.6,41.10977]
[1736884131350,3.5769329,3229.7,3229.6,40.8]
[1736884132357,6.4749729,3229.7,3229.2,0.3098]
[1736884132558,0.3098,3229.3,3229.2,0.3098]
[1736884132754,6.4749729,3229.7,3229.2,40.8]
[1736884132957,3.2078,3229.7,3229.2,40.8]
[1736884133255,0.3098,3229.3,3229.2,40.8]
[1736884133762,3.77180309,3229.3,3229.2,40.8]
[1736884134057,0.30981,3229.2,3229.1,0.30982]
[1736884134255,0.30981,3229.2,3228.9,0.4753]
[1736884134256,0.30982,3229.1,3229.0,0.30982]
[1736884134457,4.51585422,3229.2,3228.9,0.4753]
[1736884134655,1.28761,3229.2,3229.1,0.30982]
[1736884134851,0.9778,3229.2,3229.1,0.30982]
[1736884135057,3.53805422,3229.1,3229.0,41.10983]
[1736884135257,3.53805422,3229.2,3229.1,0.30982]
[1736884135456,0.3098,3229.3,3229.1,0.30982]
[1736884135857,3.55437146,3229.2,3229.1,0.30982]
[1736884136657,3.55437146,3229.2,3229.0,0.30982]
[1736884136859,0.30982,3229.1,3229.0,0.30982]
[1736884137262,2.46110279,3229.1,3229.0,0.30983]
[1736884137460,2.77092279,3229.1,3229.0,0.30983]
[1736884137675,2.43028895,3229.1,3228.6,40.8]
[1736884137853,5.94794895,3228.7,3228.6,40.8]
[1736884138060,2.74014895,3228.7,3228.6,40.8]
[1736884138361,5.97235381,3228.7,3228.6,40.8]
[1736884138568,6.12289381,3228.7,3228.0,0.9637]
[1736884138863,0.30991,3228.2,3228.0,1.27362]
[1736884139059,0.30991,3228.2,3228.1,40.8]
[1736884139463,3.9012426,3228.2,3228.1,40.8]
[1736884139862,3.5913326,3228.2,3228.1,41.10991]
[1736884140263,3.21097856,3228.3,3228.1,48.23028895]
[1736884140467,0.9337,3229.3,3228.1,48.23028895]
[1736884140669,4.2303766,3229.3,3228.5,6.41277895]
[1736884140861,0.30983,3229.0,3228.8,0.30984]
[1736884141063,3.36398895,3229.3,3228.8,0.30984]
[1736884141268,3.71651955,3228.9,3228.8,0.30984]
[1736884141468,0.30984,3228.9,3228.8,0.30984]
[1736884141672,0.30981,3229.2,3229.0,0.30982]
[1736884141861,0.9337,3229.3,3229.2,0.30981]
[1736884142062,3.2078,3229.5,3228.8,2.43028895]
[1736884142265,3.2078,3229.5,3229.4,0.30979]
[1736884142661,6.63610767,3229.5,3228.9,0.7746]
[1736884142864,0.30979,3229.4,3229.3,0.3098]
[1736884143275,6.63610767,3229.5,3228.6,1.26455]
[1736884143573,3.65468563,3229.4,3229.3,40.8]
[1736884145173,3.65468563,3229.4,3229.1,0.30981]
[1736884145174,0.30981,3229.2,3229.1,0.30981]
[1736884145581,3.83729092,3229.2,3229.1,41.10981]
[1736884146378,3.83729092,3229.2,3229.1,41.10982]
[1736884148182,3.52748092,3229.2,3229.1,41.10982]
[1736884148489,3.51759,3229.5,3229.1,41.10982]
[1736884148686,3.51759,3229.5,3229.4,0.30979]
[1736884149189,6.81512504,3229.5,3229.4,0.30979]
[1736884150390,3.29753504,3229.5,3229.4,0.30979]
[1736884150682,3.60731504,3229.5,3229.4,0.30979]
[1736884150883,0.30978,3229.5,3229.4,0.30979]
[1736884151077,3.8382621,3229.5,3229.4,0.30979]
[1736884151282,3.5284821,3229.5,3229.2,0.4676]
[1736884151478,5.63808895,3229.4,3228.9,0.30983]
[1736884151688,0.30983,3229.0,3228.9,0.30983]
[1736884152081,3.65911369,3229.0,3228.9,0.30983]
[1736884152389,0.30985,3228.9,3228.8,0.30984]
[1736884152788,3.57376615,3228.9,3228.8,0.30984]
[1736884152985,3.26391615,3228.9,3228.6,40.8]
[1736884153187,0.30986,3228.7,3228.6,41.10986]
[1736884153490,1.70144,3229.2,3228.9,0.30984]
[1736884153491,3.70376134,3229.1,3228.9,0.30984]
[1736884153785,0.30984,3228.9,3228.8,2.74012895]
[1736884153983,0.30984,3228.9,3228.8,0.30984]
[1736884154180,0.30986,3228.7,3228.6,40.8]
[1736884154583,3.60848994,3228.7,3228.6,40.8]
[1736884155190,3.60848994,3228.7,3228.6,41.10987]
[1736884155385,3.60848994,3228.7,3228.6,40.8]
[1736884155797,6.81628994,3228.7,3228.6,40.8]
[1736884157086,6.50642994,3228.7,3228.2,0.3099]
[1736884157293,0.30989,3228.3,3228.2,0.3099]
[1736884157693,0.30989,3228.3,3228.2,41.1099]
[1736884157694,3.87919046,3228.3,3228.2,41.1099]
[1736884158793,3.56930046,3228.3,3228.2,40.8]
[1736884159097,0.30989,3228.3,3228.2,41.1099]
[1736884159391,1.23767,3228.6,3228.2,40.8]
[1736884159584,1.23767,3228.6,3228.5,0.30988]
[1736884159989,4.59072743,3228.6,3228.5,0.30988]
[1736884160184,4.28085743,3228.6,3228.2,40.8]
[1736884160494,0.30989,3228.4,3228.3,0.30989]
[1736884161294,0.30989,3228.3,3228.2,40.8]
[1736884161891,0.30993,3228.0,3227.9,0.30993]
[1736884162093,0.30992,3228.1,3227.9,0.30993]
[1736884162288,0.30992,3228.1,3228.0,41.10992]
[1736884162487,0.4949,3228.2,3228.1,0.30991]
[1736884162888,0.30989,3228.4,3228.3,0.30989]
[1736884163097,0.30989,3228.4,3228.2,0.3099]
[1736884163284,0.30989,3228.4,3228.0,43.23028895]
[1736884163285,3.43619646,3228.4,3228.3,0.30989]
[1736884163486,3.43619646,3228.4,3228.3,5.94797895]
[1736884163687,5.38765,3229.1,3228.3,5.63808895]
[1736884163983,4.21077646,3229.0,3228.3,3.2078]
[1736884164188,0.7746,3228.9,3228.3,3.2078]
[1736884164385,0.30989,3228.4,3228.2,0.3099]
[1736884164584,0.30987,3228.6,3228.2,0.3099]
[1736884164790,3.26531594,3228.3,3228.1,0.30991]
[1736884165092,0.30989,3228.4,3228.2,0.30989]
[1736884165287,4.65041594,3228.5,3228.0,40.8]
[1736884165288,3.29049126,3228.3,3228.0,40.8]
[1736884165588,0.9294,3228.5,3228.0,40.8]
[1736884165794,3.29049126,3228.4,3228.3,0.30989]
[1736884166093,0.30989,3228.3,3228.2,0.3099]
[1736884166295,0.30989,3228.3,3228.1,0.30991]
[1736884166489,3.8799578,3228.3,3228.0,40.8]
[1736884166692,3.8799578,3228.3,3228.2,0.3099]
[1736884166991,3.5700678,3228.3,3228.1,0.30991]
[1736884167197,0.30991,3228.1,3228.0,40.8]
[1736884167584,3.88031302,3228.1,3228.0,41.10992]
[1736884167788,3.88031302,3228.1,3228.0,40.8]
[1736884168396,3.88031302,3228.1,3228.0,41.10992]
[1736884169298,3.88031302,3228.1,3228.0,40.8]
[1736884170192,3.57040302,3228.1,3228.0,41.10992]
[1736884170591,3.57040302,3228.1,3228.0,43.54020895]
[1736884170798,0.9294,3228.5,3228.4,0.30988]
[1736884171198,4.46016386,3228.5,3228.4,0.30988]
[1736884172698,4.77004386,3228.5,3228.4,0.30988]
[1736884172899,0.30989,3228.4,3228.3,0.30989]
[1736884173400,3.7270675,3228.4,3228.1,3.6936]
[1736884173701,0.3099,3228.2,3228.1,0.30991]
[1736884174192,3.7270775,3228.2,3228.1,0.30991]
[1736884176292,3.4171775,3228.2,3228.1,0.30991]
[1736884176494,4.1372,3228.5,3228.1,3.51771]
[1736884176495,0.9294,3228.5,3228.1,3.51771]
[1736884176690,0.9294,3228.5,3228.4,0.30988]
[1736884177092,4.52033773,3228.5,3228.4,0.30988]
[1736884177900,3.2078,3229.3,3228.3,2.43028895]
[1736884178104,0.9291,3229.1,3228.9,0.30983]
[1736884178404,0.30983,3229.0,3228.9,0.30983]
[1736884178788,3.90477225,3229.0,3228.9,0.30983]
[1736884178987,0.30984,3228.9,3228.8,0.30984]
[1736884179192,3.59494225,3229.0,3228.9,0.30984]
[1736884179391,3.36212191,3228.9,3228.6,0.77466]
[1736884179601,3.36212191,3229.0,3228.8,0.30985]
[1736884179901,0.9291,3229.1,3228.8,0.30985]
[1736884180105,0.30984,3228.9,3228.8,0.30985]
[1736884180393,0.30985,3228.8,3228.7,0.30985]
[1736884180791,3.66457578,3228.8,3228.7,0.30985]
[1736884180988,3.35472578,3228.8,3228.7,0.30985]
[1736884181399,0.30984,3228.9,3228.7,0.30985]
[1736884181602,3.49126644,3228.8,3228.7,0.30985]
[1736884183002,0.9291,3229.1,3229.0,0.30983]
[1736884183696,3.20467895,3229.8,3228.9,2.43028895]
[1736884183697,1.251,3230.0,3228.9,5.63808895]
[1736884183899,0.9513,3229.6,3229.5,0.30978]
[1736884184095,3.90731779,3229.6,3229.5,0.30978]
[1736884184289,0.4899,3229.6,3229.5,41.10978]
[1736884198102,3.2078,3229.9,3229.8,0.30975]
[1736884198316,3.6871,3229.9,3229.8,0.30975]
[1736884198700,0.4793,3229.9,3229.8,0.30975]
[1736884199006,0.4698,3230.2,3229.7,0.77441]
[1736884199208,1.442,3230.2,3230.1,0.30972]
[1736884200704,0.9722,3230.2,3230.1,0.30972]
[1736884201009,0.4921,3230.7,3230.6,0.30967]
[1736884201510,3.91175248,3230.7,3230.6,0.30967]
[1736884201701,7.11955248,3230.7,3229.7,3.2078]
[1736884201901,7.11955248,3230.7,3229.8,0.77438]
[1736884202106,2.43028895,3230.5,3229.7,3.2078]
[1736884202307,2.43028895,3230.5,3230.1,0.30972]
[1736884202504,0.30971,3230.3,3230.1,0.30972]
[1736884202908,3.55888007,3230.2,3230.1,0.30972]
[1736884203104,3.55888007,3230.2,3230.0,0.30973]
[1736884203308,0.4809,3230.1,3230.0,0.30973]
[1736884203505,3.72692973,3230.1,3230.0,0.30973]
[1736884203705,0.30973,3230.0,3229.9,0.30974]
[1736884203905,3.72692973,3230.1,3229.9,0.30974]
[1736884203906,4.03665973,3230.1,3229.9,0.30974]
[1736884204109,3.55575973,3230.0,3229.9,0.30974]
[1736884204808,3.24602973,3230.0,3229.7,3.2078]
[1736884205008,0.30975,3229.8,3229.7,3.2078]
[1736884205418,3.60744437,3229.8,3229.7,40.8]
[1736884205618,0.30979,3229.4,3229.3,3.51759]
[1736884205811,6.50549437,3229.8,3229.3,3.2078]
[1736884206010,3.2078,3229.8,3229.4,0.30979]
[1736884206211,0.30978,3229.6,3229.5,40.8]
[1736884206508,3.73035266,3229.6,3229.5,40.8]
[1736884207316,3.42057266,3229.6,3229.5,41.10978]
[1736884207711,3.7771683,3229.8,3229.5,40.8]
[1736884207911,0.9167,3229.9,3229.5,40.8]
[1736884208117,0.9167,3229.9,3229.8,0.30975]
[1736884208419,4.47025102,3229.9,3229.8,0.30975]
[1736884209211,4.77999102,3229.9,3229.8,0.30975]
[1736884209812,4.77999102,3229.9,3229.5,40.8]
[1736884210009,3.2078,3229.8,3229.3,3.2078]
[1736884210416,0.30978,3229.6,3229.5,0.30978]
[1736884210916,3.5123405,3229.6,3229.5,0.30978]
[1736884211116,3.5123405,3229.6,3229.5,41.10978]
[1736884211316,3.5123405,3229.6,3229.5,40.8]
[1736884211317,0.30977,3229.6,3229.5,40.8]
[1736884211716,3.22310847,3229.6,3229.5,41.10978]
[1736884211916,3.53287847,3229.6,3229.5,41.10978]
[1736884212317,0.30977,3229.6,3229.5,41.10978]
[1736884212521,3.76781113,3229.6,3229.5,41.10978]
[1736884212717,3.45804113,3229.6,3229.5,41.10978]
[1736884213023,0.9167,3229.9,3229.5,41.10978]
[1736884213219,0.30977,3229.6,3229.5,40.8]
[1736884213417,3.2078,3229.8,3229.5,40.8]
[1736884213616,3.22714858,3229.6,3229.5,41.10978]
[1736884213919,3.22714858,3229.7,3229.6,0.30977]
[1736884214119,0.30975,3229.8,3229.7,0.30976]
[1736884214524,3.61855332,3229.8,3229.7,0.30976]
[1736884214719,3.30880332,3229.8,3229.7,0.30976]
[1736884215120,0.4513,3229.9,3229.8,0.30975]
[1736884216020,0.4513,3229.9,3229.5,40.8]
[1736884216416,0.4513,3229.9,3229.6,0.30976]
[1736884216417,0.30976,3229.7,3229.6,0.30976]
[1736884217025,3.54690335,3229.7,3229.6,0.30976]
[1736884217526,0.4809,3230.1,3229.6,2.43028895]
[1736884217723,0.4809,3230.1,3230.0,0.30973]
[1736884218023,3.2078,3231.1,3229.9,2.43028895]
[1736884218218,3.6859,3231.1,3231.0,0.30964]
[1736884218416,7.17235302,3231.1,3231.0,0.30964]
[1736884218727,0.78773,3231.1,3231.0,41.10964]
[1736884218927,4.15710834,3231.1,3231.0,40.8]
[1736884220422,7.36490834,3231.1,3231.0,40.8]
[1736884221117,7.05527834,3231.1,3230.6,0.30967]
[1736884221323,0.30967,3230.7,3230.3,2.43028895]
[1736884221524,0.4922,3230.6,3230.5,0.30968]
[1736884221723,3.45176595,3230.6,3230.5,41.10968]
[1736884222128,3.94396595,3230.9,3230.5,40.8]
[1736884222327,3.45176595,3230.8,3230.6,0.30967]
[1736884222625,3.45176595,3230.8,3230.5,40.8]
[1736884222825,3.76141595,3230.8,3230.7,0.30966]
[1736884223022,3.45176595,3230.8,3230.7,0.30966]
[1736884223328,3.76141595,3230.8,3230.5,44.0078]
[1736884223523,3.76141595,3230.8,3230.6,0.30967]
[1736884223927,3.76141595,3230.8,3230.5,40.8]
[1736884223928,3.45176595,3230.8,3230.7,0.30966]
[1736884224126,3.45176595,3230.8,3230.5,40.8]
[1736884224426,0.30967,3230.6,3230.5,40.8]
[1736884224625,3.45176595,3230.8,3230.5,40.8]
[1736884224626,3.45176595,3230.8,3230.5,41.10968]
[1736884224826,0.30967,3230.7,3230.5,40.8]
[1736884225023,0.30967,3230.7,3230.5,41.10968]
[1736884225224,3.24808744,3230.6,3230.5,41.10968]
[1736884226026,0.487,3231.0,3230.9,0.30965]
[1736884226223,0.30965,3230.9,3230.6,2.91278895]
[1736884226426,0.30965,3230.9,3230.7,0.30966]
[1736884226627,3.31381115,3230.8,3230.7,0.30966]
[1736884227833,0.30967,3230.7,3230.6,0.30967]
[1736884228028,0.30967,3230.6,3230.5,40.8]
[1736884228329,0.3097,3230.3,3230.2,2.918]
[1736884228526,0.30971,3230.2,3230.1,3.2078]
[1736884228717,6.76374636,3230.3,3229.5,3.2078]
[1736884228922,0.30976,3229.7,3229.5,3.2078]
[1736884229122,2.43028895,3230.0,3229.6,41.10977]
[1736884229433,0.4808,3229.9,3229.6,40.8]
[1736884229730,0.30976,3229.7,3229.6,40.8]
[1736884229931,0.30976,3229.7,3229.6,41.10977]
[1736884230125,3.83638135,3229.7,3229.6,40.8]
[1736884230325,3.52662135,3229.7,3229.6,41.10977]
[1736884230723,0.30976,3229.7,3229.6,40.8]
[1736884231133,3.54237849,3229.7,3229.6,40.8]
[1736884232028,3.23261849,3229.7,3229.6,41.10977]
[1736884232229,0.9646,3230.4,3229.6,40.8]
[1736884232427,0.9646,3230.4,3230.3,0.3097]
[1736884232633,0.47366046,3230.3,3230.2,0.3097]
[1736884233027,0.30971,3230.3,3230.2,0.3097]
[1736884233224,0.30974,3230.0,3229.7,3.2078]
[1736884233432,3.3721184,3230.3,3229.6,40.8]
[1736884233729,0.30974,3230.0,3229.8,0.30974]
[1736884234125,3.36080571,3229.9,3229.8,0.30974]
[1736884234433,3.36080571,3229.9,3229.8,2.74002895]
[1736884234628,0.9646,3230.4,3229.8,2.43028895]
[1736884234829,1.27429,3230.4,3230.3,0.3097]
[1736884235133,4.6165661,3230.4,3230.3,0.3097]
[1736884235726,4.6165661,3230.4,3229.8,3.20465895]
[1736884235927,4.3068761,3230.4,3229.7,3.2078]
[1736884236225,3.8173761,3230.4,3230.3,0.3097]
[1736884236427,0.49,3230.7,3230.6,0.30967]
[1736884236727,0.30967,3230.6,3230.4,0.30969]
[1736884236929,0.30967,3230.6,3230.3,0.3097]
[1736884236930,0.30969,3230.5,3230.3,0.3097]
[1736884237233,0.30971,3230.3,3230.1,0.30972]
[1736884237426,0.4582,3230.4,3230.1,0.30972]
[1736884237635,3.47140448,3230.2,3230.1,0.30972]
[1736884237822,3.78111448,3230.2,3230.1,41.10972]
[1736884238021,0.30971,3230.2,3230.1,41.10972]
[1736884238226,3.78111448,3230.2,3230.1,41.10972]
[1736884238623,3.78111448,3230.2,3230.1,40.8]
[1736884239133,3.78111448,3230.2,3229.2,2.43028895]
[1736884239134,0.30979,3229.4,3229.2,0.3098]
[1736884239335,3.2078,3229.7,3229.0,3.2078]
[1736884239640,0.30981,3229.2,3229.1,40.8]
[1736884240135,0.08921337,3229.2,3229.1,40.8]
[1736884240639,0.39902337,3229.2,3229.1,40.8]
[1736884240832,0.88372337,3229.2,3229.1,40.8]
[1736884241027,0.57391337,3229.2,3229.1,41.10982]
[1736884241728,0.88372337,3229.2,3229.1,40.8]
[1736884242434,4.09152337,3229.2,3229.1,40.8]
[1736884244039,4.09152337,3229.2,3229.1,41.10982]
[1736884244235,4.09152337,3229.2,3229.1,40.8]
[1736884244940,4.09152337,3229.2,3229.1,41.10982]
[1736884245634,4.09152337,3229.2,3229.1,40.8]
[1736884246241,4.09152337,3229.2,3229.1,41.10982]
[1736884246928,0.08921337,3229.2,3229.1,41.10982]
[1736884247135,3.6961,3229.6,3229.5,0.30978]
[1736884247435,7.29351188,3229.6,3229.5,0.30978]
[1736884249436,0.3098,3229.4,3229.3,0.3098]
[1736884249837,3.83386308,3229.4,3229.3,0.3098]
[1736884250742,0.30981,3229.2,3229.1,40.8]
[1736884251242,3.73347693,3229.2,3229.1,40.8]
[1736884252338,6.63146693,3229.2,3228.5,3.2078]
[1736884252539,0.30986,3228.7,3228.6,0.30986]
[1736884252740,0.30985,3228.8,3228.7,0.30985]
[1736884253044,3.53486718,3228.8,3228.7,0.30985]
[1736884253343,0.30986,3228.7,3228.6,40.8]
[1736884253533,0.79496,3228.7,3228.6,40.8]
[1736884253735,4.09009038,3228.7,3228.6,40.8]
[1736884260649,0.77469,3228.6,3228.0,3.2078]
[1736884260948,0.30991,3228.2,3228.1,0.30991]
[1736884261339,3.73720657,3228.2,3228.1,0.30991]
[1736884261743,3.42729657,3228.2,3228.1,41.10991]
[1736884262045,0.4865,3228.5,3228.1,41.10991]
[1736884262241,0.3099,3228.2,3228.1,41.10991]
[1736884262449,3.57284577,3228.2,3228.1,41.10991]
[1736884262649,0.3099,3228.2,3228.1,41.10991]
[1736884262946,3.61005109,3228.2,3228.1,41.10991]
[1736884263548,3.61005109,3228.2,3228.1,40.8]
[1736884265156,0.30996,3227.6,3227.5,3.2078]
[1736884265349,6.41294895,3227.9,3227.2,0.4551]
[1736884265649,0.30999,3227.3,3227.2,0.31]
[1736884265948,3.38932742,3227.3,3227.0,2.43228895]
[1736884266148,3.38932742,3227.3,3227.2,41.11]
[1736884266347,3.38932742,3227.4,3227.3,0.30999]
[1736884266652,0.30998,3227.4,3227.3,0.30999]
[1736884266853,0.30999,3227.3,3227.2,41.10999]
[1736884267049,3.58629473,3227.4,3227.2,41.10999]
[1736884267349,3.58629473,3227.3,3227.2,41.11]
[1736884267550,3.89628473,3227.4,3227.2,41.11]
[1736884267755,0.30999,3227.3,3227.2,41.11]
[1736884268149,3.75810398,3227.3,3227.2,40.8]
[1736884268451,0.30999,3227.3,3227.2,41.11]
[1736884268651,0.31001,3227.1,3227.0,0.002]
[1736884268843,3.2078,3227.1,3225.8,3.2078]
[1736884269043,2.43028895,3226.2,3225.9,40.8]
[1736884269249,0.3101,3226.2,3226.0,0.31012]
[1736884269650,0.31009,3226.3,3225.9,40.8]
[1736884269850,0.4843,3226.5,3226.0,0.4955]
[1736884270046,3.3595802,3226.2,3226.0,0.4955]
[1736884270247,3.3595802,3226.2,3226.0,0.31011]
[1736884270248,0.3101,3226.2,3226.0,0.31011]
[1736884270556,3.29228872,3226.1,3226.0,0.31011]
[1736884270851,3.29228872,3226.1,3225.9,40.8]
[1736884271051,3.60239872,3226.1,3225.9,40.8]
[1736884271252,3.60239872,3226.1,3225.9,41.11012]
[1736884271443,0.31011,3226.1,3225.9,41.11012]
[1736884271648,3.42085311,3226.0,3225.9,41.11012]
[1736884272257,5.63808895,3227.0,3225.9,43.23028895]
[1736884272457,0.9455,3226.9,3226.2,3.2078]
[1736884272656,3.58343242,3226.7,3226.6,0.31006]
[1736884272856,0.31004,3226.8,3226.5,0.31006]
[1736884273056,3.89347242,3226.8,3226.5,0.31006]
[1736884273252,3.58343242,3226.8,3226.6,0.31005]
[1736884273458,3.2078,3227.0,3226.7,40.8]
[1736884273657,3.2078,3227.0,3226.8,0.4656]
[1736884273958,3.57311637,3226.9,3226.8,0.4656]
[1736884274558,3.26308637,3226.9,3226.8,0.4656]
[1736884274753,3.26308637,3226.9,3226.8,0.77564]
[1736884277558,3.57311637,3226.9,3226.8,0.4656]
[1736884277763,0.31004,3226.8,3226.4,0.31007]
[1736884277959,0.492,3226.8,3226.3,3.2078]
[1736884278259,0.31008,3226.4,3226.3,3.2078]
[1736884278559,0.31007,3226.5,3226.3,0.31009]
[1736884278864,0.31007,3226.5,3226.2,0.31009]
[1736884279062,0.31007,3226.5,3226.3,0.31008]
[1736884279255,3.43659631,3226.4,3226.3,0.31008]
[1736884279456,3.43659631,3226.4,3226.2,0.31009]
[1736884279657,3.43659631,3226.4,3226.0,0.4915]
[1736884279856,3.43659631,3226.4,3226.2,0.31009]
[1736884280149,3.43659631,3226.4,3226.3,0.31009]
[1736884280556,3.59466528,3226.7,3226.6,0.31005]
[1736884280761,2.05404,3226.8,3226.6,0.31005]
[1736884280959,1.744,3226.8,3226.7,0.31005]
[1736884281356,5.25630852,3226.8,3226.7,0.31005]
[1736884281556,4.76430852,3226.8,3226.7,0.31005]
[1736884281757,4.76430852,3226.8,3226.7,41.11005]
[1736884282058,3.51230852,3226.8,3226.7,41.11005]
[1736884282269,3.82234852,3226.8,3226.7,41.11005]
[1736884282463,0.31004,3226.8,3226.7,41.11005]
[1736884282665,3.22317613,3226.8,3226.7,41.11005]
[1736884283363,3.22317613,3226.8,3226.7,40.8]
[1736884283364,3.53321613,3226.8,3226.7,40.8]
[1736884283767,0.31004,3226.8,3226.7,41.11005]
[1736884283960,3.90439114,3226.8,3226.7,41.11005]
[1736884284863,3.90439114,3226.8,3226.7,40.8]
[1736884285064,3.90439114,3226.8,3226.7,41.11005]
[1736884286157,3.59435114,3226.8,3226.7,41.11005]
[1736884286356,0.31,3227.2,3226.7,40.8]
[1736884286562,0.4964,3227.3,3227.2,0.31]
[1736884286855,3.57784067,3227.0,3226.9,0.31003]
[1736884287059,4.07424067,3227.3,3226.8,0.4659]
[1736884287363,4.07424067,3227.3,3226.7,41.2561]
[1736884287364,0.31004,3226.8,3226.7,41.11005]
[1736884287565,0.31004,3226.8,3226.7,40.8]
[1736884287862,2.96321457,3226.8,3226.7,41.11005]
[1736884288164,0.31004,3226.8,3226.7,40.8]
[1736884288565,3.45017937,3226.8,3226.4,0.31007]
[1736884288769,0.31006,3226.6,3226.3,0.31008]
[1736884288980,0.77257,3226.5,3226.3,0.31008]
[1736884289270,0.31009,3226.3,3225.9,3.2078]
[1736884289455,0.31009,3226.3,3226.1,0.3101]
[1736884289660,3.25411965,3226.2,3226.1,0.3101]
[1736884289860,3.56421965,3226.2,3226.1,0.3101]
[1736884290063,3.25411965,3226.4,3226.2,0.3101]
[1736884290261,3.25411965,3226.2,3225.9,3.2078]
[1736884290472,3.25411965,3226.2,3226.1,0.31011]
[1736884290682,3.38977706,3226.4,3225.9,3.2078]
[1736884290979,0.31008,3226.4,3226.2,0.31009]
[1736884291170,3.69985706,3226.4,3226.3,41.11009]
[1736884291373,3.69985706,3226.4,3226.3,40.8]
[1736884293972,0.31011,3226.2,3226.0,0.31011]
[1736884294383,2.43028895,3226.2,3226.1,40.8]
[1736884294581,2.74038895,3226.2,3226.1,40.8]
[1736884294782,6.29147133,3226.2,3226.1,40.8]
[1736884295683,3.55108238,3226.2,3226.1,40.8]
[1736884295982,0.3101,3226.2,3226.1,40.8]
[1736884296283,5.94818895,3226.2,3226.1,40.8]
[1736884296480,10.65853957,3226.2,3226.1,40.8]
[1736884296788,0.31017,3225.5,3225.4,0.31017]
[1736884296982,5.63808895,3225.8,3224.9,4.45865]
[1736884297188,6.88882895,3225.8,3225.6,0.31015]
[1736884297379,6.88882895,3225.8,3225.4,40.8]
[1736884297380,7.69756676,3225.8,3225.7,0.31014]
[1736884297888,4.48976676,3225.8,3225.7,0.31014]
[1736884298986,4.79990676,3225.8,3225.5,0.4753]
[1736884299283,4.48976676,3225.8,3225.6,0.31015]
[1736884299486,4.79989676,3225.8,3225.7,0.31014]
[1736884299990,4.48976676,3225.8,3225.7,0.31014]
[1736884300988,0.31015,3225.7,3225.5,0.31016]
[1736884301185,4.79990676,3225.8,3225.6,0.31015]
[1736884301485,4.48976676,3225.8,3225.7,0.31014]
[1736884301783,4.01146676,3225.8,3225.7,0.31014]
[1736884301974,3.6681,3226.4,3225.6,0.77538]
[1736884302178,3.6681,3226.4,3226.1,0.3101]
[1736884302179,0.31009,3226.3,3226.1,0.3101]
[1736884302584,3.80753073,3226.2,3226.1,0.3101]
[1736884303083,0.3101,3226.2,3226.1,41.11011]
[1736884303288,3.56244235,3226.2,3226.1,41.11011]
[1736884303689,3.56244235,3226.2,3226.1,40.8]
[1736884304790,3.56244235,3226.2,3226.1,41.11011]
[1736884305283,3.56244235,3226.2,3226.1,40.8]
[1736884306281,3.25234235,3226.2,3226.1,0.31011]
[1736884306486,3.2078,3226.4,3226.3,0.31009]
[1736884306680,3.2078,3226.4,3226.3,41.11009]
[1736884308093,6.97489995,3226.4,3226.3,40.8]
[1736884308286,7.46089995,3226.4,3226.3,40.8]
[1736884310683,7.15081995,3226.4,3226.1,0.3101]
[1736884310889,0.3101,3226.2,3226.1,0.3101]
[1736884311391,3.50561474,3226.2,3226.1,41.1101]